[Event "American Continental-ch 2018"]
[Site "Montevideo"]
[Date "2018.06.03"]
[Round "4"]
[White "Grabinsky, Aaron"]
[Black "Torella, Rodolfo"]
[Result "1-0"]
[ECO "B01"]
[WhiteElo "2296"]
[BlackElo "2016"]
[Annotator "RC"]
[PlyCount "83"]
[EventDate "2018.??.??"]
[EventType "swiss"]
[EventCountry "URU"]
[SourceTitle "playchess.com"]
[Source "ChessBase"]
[SourceQuality "1"]
[TimeControl "40/5400+30:1800+30"]

1. e4 d5 {[%emt 0:04:31]} 2. Nc3 {[%emt 0:00:17]} dxe4 {[%emt 0:00:21]} 3. Nxe4 {[%emt 0:00:05]} Bf5 {[%emt 0:00:49]} 4. Ng3 {[%emt 0:00:18]} Bg6 {[%emt 0:00:07]} 5. Nf3 {[%emt 0:00:17]} Nf6 {[%emt 0:01:56]} 6. Ne5 {[%emt 0:01:20]} e6 {[%emt 0:00:30]} 7. d4 {[%emt 0:01:24]} Nbd7 {[%emt 0:04:24]} 8. Nxg6 {[%emt 0:00:54]} hxg6 {[%emt 0:00:08]} 9. Bd3 {[%emt 0:00:30]} Bd6 {[%emt 0:00:30]} 10. Qf3 {[%emt 0:00:58]} c6 {[%emt 0:05:15]} 11. Be3 {[%emt 0:01:28]} Qa5+ {[%emt 0:08:57]} 12. c3 {[%emt 0:03:02]} Qd5 {[%emt 0:02:12]} 13. Ne4 {[%emt 0:01:30]} Nxe4 {[%emt 0:02:28]} 14. Bxe4 {[%emt 0:00:06]} Qh5 {[%emt 0:00:36]} 15. O-O-O {[%emt 0:03:18]} Qxf3 {[%emt 0:03:28]} 16. Bxf3 {[%emt 0:00:05]} Nb6 {[%emt 0:07:53]} 17. Kc2 {[%emt 0:00:49]} Nd5 {[%emt 0:01:36]} 18. Bc1 {[%emt 0:00:14]} O-O-O {[%emt 0:12:16]} 19. h4 {[%emt 0:00:17]} b5 {[%emt 0:04:29]} 20. g3 {[%emt 0:03:31]} Kc7 21. Bg2 a6 {[%emt 0:03:27]} 22. Rd3 {[%emt 0:07:41]} Rh5 {[%emt 0:03:21]} 23. Bf3 {[%emt 0:01:14]} Rhh8 {[%emt 0:01:18]} 24. a3 {[%emt 0:02:14]} Nb6 {[%emt 0:05:07]} 25. b3 c5 {[%emt 0:13:03]} 26. dxc5 {[%emt 0:09:39]} Bxc5 {[%emt 0:05:35]} 27. Bf4+ {[%emt 0:03:36]} Kc8 28. Rhd1 {[%emt 0:00:01]} Rxd3 {[%emt 0:01:12]} 29. Rxd3 {[%emt 0:00:35]} Be7 30. Be3 Nd7 {[%emt 0:03:05]} 31. Bb7+ {[%emt 0:01:44]} Kc7 {[%emt 0:00:33]} 32. Bxa6 {[%emt 0:00:28]} Rb8 33. b4 {[%emt 0:06:19]} f6 {[%emt 0:05:46]} 34. f4 {[%emt 0:00:56]} Kc6 {[%emt 0:00:30]} 35. c4 {[%emt 0:00:24]} bxc4 {[%emt 0:00:49]} 36. Bxc4 {[%emt 0:00:06]} e5 {[%emt 0:00:30]} 37. Be6 {[%emt 0:00:30]} Nb6 {[%emt 0:00:33]} 38. fxe5 {[%emt 0:01:11]} fxe5 {[%emt 0:00:30]} 39. Bf7 {[%emt 0:00:30]} Bf6 {[%emt 0:01:27]} 40. Bxg6 {[%emt 0:00:16]} Kb5 {[%emt 0:30:25]} 41. Kb3 {[%emt 0:31:03]} Rc8 {[%emt 0:00:49]} 42. Rd6 {[%emt 0:00:31]} 1-0

[Event "American Continental-ch 2018"]
[Site "Montevideo"]
[Date "2018.06.05"]
[Round "6"]
[White "Cerda Albornoz, Guillermo"]
[Black "Ruiz Castillo, Joshua Daniel"]
[Result "0-1"]
[ECO "A46"]
[WhiteElo "2195"]
[BlackElo "2378"]
[Annotator "ChessBase"]
[PlyCount "140"]
[EventDate "2018.??.??"]
[EventType "swiss"]
[EventCountry "URU"]
[SourceTitle "playchess.com"]
[Source "ChessBase"]
[SourceQuality "1"]
[TimeControl "40/5400+30:1800+30"]

1. d4 {[%emt 0:00:00]} Nf6 {[%emt 0:04:34]} 2. Nf3 {[%emt 0:00:16]} e6 {[%emt 0:00:06]} 3. e3 {[%emt 0:00:09]} c5 {[%emt 0:00:06]} 4. c4 {[%emt 0:02:03]} cxd4 {[%emt 0:00:08]} 5. exd4 {[%emt 0:00:22]} d5 {[%emt 0:00:04]} 6. Nc3 {[%emt 0:00:34]} Bb4 {[%emt 0:00:59]} 7. cxd5 {[%emt 0:01:41]} Nxd5 {[%emt 0:00:06]} 8. Bd2 {[%emt 0:00:30]} O-O {[%emt 0:01:04]} 9. Bd3 {[%emt 0:01:16]} Nc6 {[%emt 0:00:14]} 10. O-O {[%emt 0:00:44]} Be7 {[%emt 0:01:04]} 11. Rc1 {[%emt 0:05:30]} Nf6 {[%emt 0:09:47]} 12. Be3 {[%emt 0:05:07]} Nb4 {[%emt 0:02:34]} 13. Bb1 {[%emt 0:00:26]} b6 {[%emt 0:00:06]} 14. Ne5 {[%emt 0:03:56]} Bb7 {[%emt 0:03:12]} 15. a3 {[%emt 0:08:18]} Nbd5 {[%emt 0:00:07]} 16. Ba2 {[%emt 0:00:06]} Rc8 {[%emt 0:03:29]} 17. Nxd5 {[%emt 0:03:44]} Bxd5 {[%emt 0:05:13]} 18. Rxc8 {[%emt 0:00:35]} Qxc8 {[%emt 0:00:08]} 19. Bxd5 {[%emt 0:00:05]} Nxd5 {[%emt 0:00:04]} 20. Qa4 {[%emt 0:00:43]} Qb7 {[%emt 0:03:21]} 21. Bd2 {[%emt 0:07:43]} b5 {[%emt 0:05:55]} 22. Qb3 {[%emt 0:01:11]} Rc8 {[%emt 0:00:05]} 23. Rc1 {[%emt 0:01:39]} a6 {[%emt 0:09:15]} 24. h3 {[%emt 0:04:36]} Rxc1+ {[%emt 0:03:25]} 25. Bxc1 {[%emt 0:00:01]} Qc7 {[%emt 0:00:19]} 26. Bd2 {[%emt 0:00:20]} Bd6 {[%emt 0:00:06]} 27. Nf3 {[%emt 0:07:03]} Qc6 {[%emt 0:00:34]} 28. Ne5 {[%emt 0:00:53]} Qc7 {[%emt 0:08:59]} 29. Nf3 {[%emt 0:01:02]} Nb6 {[%emt 0:00:03]} 30. Kf1 {[%emt 0:12:37]} h6 {[%emt 0:00:40]} 31. Qd3 {[%emt 0:06:50]} Na4 {[%emt 0:06:01]} 32. b3 {[%emt 0:03:49]} Nb6 {[%emt 0:10:34]} 33. a4 {[%emt 0:04:17]} bxa4 {[%emt 0:03:43]} 34. bxa4 {[%emt 0:00:04]} Qc4 {[%emt 0:00:01]} 35. Qxc4 {[%emt 0:00:21]} Nxc4 {[%emt 0:00:01]} 36. Ke2 {[%emt 0:00:34]} Kf8 {[%emt 0:00:08]} 37. Bc3 {[%emt 0:01:00]} Nb6 {[%emt 0:00:04]} 38. a5 {[%emt 0:01:07]} Nd5 {[%emt 0:00:03]} 39. Bd2 {[%emt 0:00:13]} Ke7 {[%emt 0:00:25]} 40. Ne5 {[%emt 0:02:29]} f6 {[%emt 0:30:41]} 41. Ng6+ {[%emt 0:32:18]} Kf7 {[%emt 0:02:38]} 42. Nh8+ {[%emt 0:00:12]} Ke8 {[%emt 0:00:08]} 43. Ng6 {[%emt 0:00:07]} Kf7 {[%emt 0:07:20]} 44. Nh8+ {[%emt 0:00:35]} Kg8 {[%emt 0:00:01]} 45. Ng6 {[%emt 0:00:14]} Kh7 {[%emt 0:00:00]} 46. Nh4 g5 47. Nf3 {[%emt 0:00:19]} Kg6 {[%emt 0:00:02]} 48. g3 {[%emt 0:00:31]} Kf7 {[%emt 0:00:05]} 49. Kd3 {[%emt 0:00:06]} Ke7 {[%emt 0:00:23]} 50. Kc4 {[%emt 0:00:11]} Kd7 {[%emt 0:00:06]} 51. h4 {[%emt 0:00:30]} Kc6 {[%emt 0:01:10]} 52. hxg5 {[%emt 0:04:15]} hxg5 {[%emt 0:03:00]} 53. Nh2 {[%emt 0:02:22]} Bc7 {[%emt 0:02:25]} 54. Nf3 {[%emt 0:02:26]} Ne7 {[%emt 0:02:13]} 55. Ne1 {[%emt 0:04:58]} Nf5 {[%emt 0:00:44]} 56. Nd3 {[%emt 0:01:50]} Nd6+ {[%emt 0:00:08]} 57. Kb3 {[%emt 0:00:38]} Ne4 {[%emt 0:00:39]} 58. Be1 {[%emt 0:00:00]} Kb5 59. f3 {[%emt 0:00:00]} Nxg3 {[%emt 0:00:00]} 60. Nc5 Nf5 61. Nxe6 {[%emt 0:00:00]} Bxa5 {[%emt 0:00:00]} 62. Bxa5 {[%emt 0:00:00]} Kxa5 {[%emt 0:00:00]} 63. Kc4 {[%emt 0:00:00]} Nh4 {[%emt 0:00:00]} 64. f4 {[%emt 0:00:00]} g4 {[%emt 0:00:00]} 65. d5 {[%emt 0:00:00]} Kb6 {[%emt 0:00:00]} 66. Kd3 {[%emt 0:00:00]} a5 {[%emt 0:00:00]} 67. Ke2 {[%emt 0:00:00]} Nf5 {[%emt 0:00:00]} 68. Nf8 {[%emt 0:00:00]} Kc7 {[%emt 0:00:00]} 69. Nh7 {[%emt 0:00:00]} a4 {[%emt 0:00:00]} 70. d6+ {[%emt 0:00:00]} Kd8 {[%emt 0:00:00]} 0-1

[Event "American Continental-ch 2018"]
[Site "Montevideo"]
[Date "2018.06.07"]
[Round "7"]
[White "Varacalli, Francisco"]
[Black "Saralegui, Mario"]
[Result "1-0"]
[ECO "C55"]
[WhiteElo "2312"]
[BlackElo "2069"]
[Annotator "RC"]
[PlyCount "83"]
[EventDate "2018.??.??"]
[EventType "swiss"]
[EventCountry "URU"]
[SourceTitle "playchess.com"]
[Source "ChessBase"]
[SourceQuality "1"]
[TimeControl "40/5400+30:1800+30"]

1. e4 e5 {[%emt 0:00:27]} 2. Nf3 {[%emt 0:00:00]} Nc6 {[%emt 0:00:13]} 3. Bc4 {[%emt 0:00:23]} Nf6 {[%emt 0:00:12]} 4. d3 {[%emt 0:00:35]} Be7 {[%emt 0:00:10]} 5. Bb3 {[%emt 0:00:30]} d6 {[%emt 0:00:30]} 6. c3 {[%emt 0:00:30]} O-O {[%emt 0:00:00]} 7. O-O {[%emt 0:00:38]} Na5 {[%emt 0:00:05]} 8. Bc2 {[%emt 0:00:06]} c5 {[%emt 0:00:06]} 9. Re1 {[%emt 0:01:13]} Nc6 {[%emt 0:00:17]} 10. Nbd2 {[%emt 0:01:22]} Re8 {[%emt 0:00:31]} 11. Nf1 {[%emt 0:00:07]} Be6 {[%emt 0:00:09]} 12. h3 {[%emt 0:00:58]} h6 {[%emt 0:00:21]} 13. Ng3 {[%emt 0:11:01]} Bf8 {[%emt 0:01:26]} 14. d4 {[%emt 0:00:30]} cxd4 {[%emt 0:00:30]} 15. cxd4 {[%emt 0:00:30]} Bd7 {[%emt 0:00:30]} 16. d5 {[%emt 0:00:30]} Nb4 {[%emt 0:00:30]} 17. Bb1 {[%emt 0:00:30]} a5 {[%emt 0:00:30]} 18. a3 {[%emt 0:00:30]} Na6 {[%emt 0:00:30]} 19. Bc2 {[%emt 0:00:30]} Nc5 {[%emt 0:00:30]} 20. b3 {[%emt 0:00:30]} Rc8 {[%emt 0:00:30]} 21. b4 {[%emt 0:00:30]} axb4 {[%emt 0:00:30]} 22. axb4 {[%emt 0:00:30]} Na6 {[%emt 0:00:30]} 23. Bd2 {[%emt 0:00:30]} g6 {[%emt 0:00:30]} 24. Bd3 {[%emt 0:00:30]} Ra8 {[%emt 0:29:12]} 25. Be3 {[%emt 0:22:30]} Nc7 {[%emt 0:07:57]} 26. Qe2 {[%emt 0:00:55]} Qe7 {[%emt 0:00:23]} 27. Ra5 Rxa5 {[%emt 0:07:53]} 28. bxa5 {[%emt 0:06:33]} Ncxd5 {[%emt 0:00:11]} 29. exd5 {[%emt 0:22:24]} e4 {[%emt 0:05:18]} 30. Qb2 {[%emt 0:00:24]} exf3 {[%emt 0:01:11]} 31. Qxb7 {[%emt 0:06:10]} Qd8 {[%emt 0:12:53]} 32. Ra1 {[%emt 0:01:09]} fxg2 {[%emt 0:00:25]} 33. a6 {[%emt 0:01:54]} Bc8 {[%emt 0:04:15]} 34. Qb3 {[%emt 0:04:11]} Qd7 {[%emt 0:01:32]} 35. Be2 {[%emt 0:01:06]} Qxh3 {[%emt 0:14:16]} 36. Bf3 {[%emt 0:02:42]} Bxa6 {[%emt 0:02:20]} 37. Rxa6 {[%emt 0:00:27]} Ng4 {[%emt 0:00:08]} 38. Bxg4 {[%emt 0:00:10]} Qxg4 39. Kxg2 h5 {[%emt 0:00:34]} 40. Qa4 {[%emt 0:02:10]} Qc8 {[%emt 0:35:34]} 41. Ra7 {[%emt 0:32:10]} h4 {[%emt 0:00:00]} 42. Qxh4 1-0

[Event "American Continental-ch 2018"]
[Site "Montevideo"]
[Date "2018.06.07"]
[Round "7"]
[White "Arias Bouzada, Jorge"]
[Black "Lujan, Carolina"]
[Result "1/2-1/2"]
[ECO "A25"]
[WhiteElo "2097"]
[BlackElo "2341"]
[Annotator "RC"]
[PlyCount "81"]
[EventDate "2018.??.??"]
[EventType "swiss"]
[EventCountry "URU"]
[SourceTitle "playchess.com"]
[Source "ChessBase"]
[SourceQuality "1"]
[TimeControl "40/5400+30:1800+30"]

1. c4 {[%emt 0:00:13]} e5 {[%emt 0:06:12]} 2. Nc3 {[%emt 0:00:15]} Nc6 {[%emt 0:00:50]} 3. g3 {[%emt 0:00:26]} g6 {[%emt 0:00:13]} 4. Bg2 {[%emt 0:00:12]} Bg7 {[%emt 0:00:05]} 5. e3 {[%emt 0:01:08]} d6 {[%emt 0:00:42]} 6. Nge2 {[%emt 0:01:04]} Nf6 {[%emt 0:00:44]} 7. d4 {[%emt 0:07:50]} exd4 {[%emt 0:07:56]} 8. Nxd4 {[%emt 0:00:12]} Bd7 {[%emt 0:04:59]} 9. b3 {[%emt 0:01:23]} O-O {[%emt 0:02:41]} 10. Bb2 {[%emt 0:01:12]} Ne5 {[%emt 0:22:50]} 11. O-O {[%emt 0:15:14]} Bg4 {[%emt 0:07:25]} 12. f3 {[%emt 0:03:38]} Bd7 {[%emt 0:01:04]} 13. Qd2 {[%emt 0:01:24]} a6 {[%emt 0:07:43]} 14. f4 {[%emt 0:09:32]} Nc6 {[%emt 0:00:25]} 15. Nxc6 {[%emt 0:10:17]} Bxc6 {[%emt 0:00:59]} 16. e4 {[%emt 0:01:18]} Nd7 {[%emt 0:07:29]} 17. Rac1 {[%emt 0:12:52]} a5 {[%emt 0:00:34]} 18. Nd5 {[%emt 0:02:44]} f6 {[%emt 0:05:20]} 19. Rfd1 {[%emt 0:04:11]} Nc5 {[%emt 0:01:13]} 20. Bc3 {[%emt 0:05:11]} b6 {[%emt 0:01:46]} 21. Qb2 {[%emt 0:00:48]} Bxd5 {[%emt 0:05:07]} 22. cxd5 {[%emt 0:00:18]} Re8 {[%emt 0:01:10]} 23. Qc2 {[%emt 0:00:27]} Re7 {[%emt 0:00:46]} 24. Bd4 {[%emt 0:03:02]} Qd7 {[%emt 0:01:28]} 25. Bxc5 {[%emt 0:00:54]} bxc5 {[%emt 0:00:09]} 26. Qc4 {[%emt 0:00:19]} Ree8 {[%emt 0:01:24]} 27. Qf1 {[%emt 0:04:45]} Qe7 {[%emt 0:02:39]} 28. Re1 {[%emt 0:00:20]} Reb8 {[%emt 0:01:28]} 29. Rc4 {[%emt 0:02:18]} Rb4 {[%emt 0:01:02]} 30. Bh3 {[%emt 0:00:42]} Rab8 {[%emt 0:00:42]} 31. Be6+ {[%emt 0:00:07]} Kh8 {[%emt 0:00:15]} 32. f5 {[%emt 0:00:50]} Bh6 {[%emt 0:00:59]} 33. Rxb4 {[%emt 0:03:25]} axb4 {[%emt 0:00:39]} 34. Qa6 {[%emt 0:00:52]} Qd8 {[%emt 0:02:43]} 35. Re2 {[%emt 0:00:11]} Qe8 {[%emt 0:03:32]} 36. Kf2 {[%emt 0:02:03]} Rb6 {[%emt 0:01:31]} 37. Qa7 {[%emt 0:00:39]} Qd8 {[%emt 0:00:39]} 38. Qa4 {[%emt 0:00:12]} Rb8 {[%emt 0:00:31]} 39. Qd7 {[%emt 0:00:09]} Qxd7 {[%emt 0:00:23]} 40. Bxd7 {[%emt 0:00:05]} Kg7 {[%emt 0:30:20]} 41. Rc2 {[%emt 0:30:58]} 1/2-1/2

[Event "American Continental-ch 2018"]
[Site "Montevideo"]
[Date "2018.06.07"]
[Round "8"]
[White "Lujan, Carolina"]
[Black "Borges, Guilherme Deola"]
[Result "1-0"]
[ECO "B23"]
[WhiteElo "2341"]
[BlackElo "2219"]
[Annotator "RC"]
[PlyCount "73"]
[EventDate "2018.??.??"]
[EventType "swiss"]
[EventCountry "URU"]
[SourceTitle "playchess.com"]
[Source "ChessBase"]
[SourceQuality "1"]
[TimeControl "40/5400+30:1800+30"]

1. e4 {[%emt 0:03:48]} c5 {[%emt 0:00:07]} 2. Ne2 {[%emt 0:00:25]} Nc6 {[%emt 0:00:24]} 3. Nbc3 {[%emt 0:00:09]} e6 {[%emt 0:01:06]} 4. g3 {[%emt 0:00:20]} a6 {[%emt 0:01:12]} 5. Bg2 {[%emt 0:01:28]} d6 {[%emt 0:09:11]} 6. O-O {[%emt 0:00:28]} Nf6 {[%emt 0:01:28]} 7. d3 {[%emt 0:06:39]} Be7 {[%emt 0:00:46]} 8. h3 {[%emt 0:00:19]} Qc7 {[%emt 0:06:40]} 9. Be3 {[%emt 0:03:17]} b5 {[%emt 0:04:47]} 10. f4 {[%emt 0:03:49]} Bb7 {[%emt 0:03:45]} 11. a3 {[%emt 0:09:46]} O-O {[%emt 0:25:14]} 12. g4 {[%emt 0:02:19]} b4 {[%emt 0:03:16]} 13. Na4 {[%emt 0:03:56]} Nd7 {[%emt 0:00:56]} 14. g5 {[%emt 0:07:44]} Nd8 {[%emt 0:06:11]} 15. Ng3 {[%emt 0:06:37]} f5 {[%emt 0:09:56]} 16. Qe2 {[%emt 0:09:39]} Bc6 {[%emt 0:03:56]} 17. exf5 {[%emt 0:04:13]} exf5 {[%emt 0:01:01]} 18. axb4 {[%emt 0:00:11]} cxb4 {[%emt 0:01:09]} 19. Bd4 {[%emt 0:04:39]} Bxg2 {[%emt 0:03:04]} 20. Qxg2 {[%emt 0:04:48]} Qb7 {[%emt 0:09:12]} 21. Qe2 {[%emt 0:02:31]} Nc6 {[%emt 0:01:32]} 22. Qe6+ {[%emt 0:01:34]} Kh8 {[%emt 0:00:07]} 23. Qd5 {[%emt 0:01:09]} Nc5 {[%emt 0:00:43]} 24. Bxc5 {[%emt 0:08:05]} dxc5 {[%emt 0:00:02]} 25. Nxf5 {[%emt 0:01:04]} Rad8 {[%emt 0:02:58]} 26. Qe4 {[%emt 0:00:27]} Rxf5 {[%emt 0:00:10]} 27. Qxf5 {[%emt 0:00:20]} Nd4 {[%emt 0:00:05]} 28. Qe4 {[%emt 0:02:04]} Qd7 {[%emt 0:00:07]} 29. Qg2 {[%emt 0:01:11]} b3 {[%emt 0:00:50]} 30. cxb3 {[%emt 0:01:58]} Nxb3 {[%emt 0:00:51]} 31. Rae1 {[%emt 0:00:15]} Bf8 {[%emt 0:02:57]} 32. Nc3 {[%emt 0:00:24]} c4 {[%emt 0:01:54]} 33. dxc4 {[%emt 0:01:50]} Nd2 {[%emt 0:00:11]} 34. Rd1 {[%emt 0:01:01]} Bc5+ {[%emt 0:00:06]} 35. Kh1 {[%emt 0:00:54]} Be3 {[%emt 0:00:43]} 36. Ne4 {[%emt 0:03:43]} Qf5 {[%emt 0:00:11]} 37. Nxd2 {[%emt 0:00:16]} 1-0

[Event "American Continental-ch 2018"]
[Site "Montevideo"]
[Date "2018.06.07"]
[Round "8"]
[White "Cabrera Pando, Ramiro"]
[Black "Kimelman, Gabriel"]
[Result "1-0"]
[ECO "E21"]
[WhiteElo "2196"]
[BlackElo "2279"]
[Annotator "NA"]
[PlyCount "36"]
[EventDate "2018.??.??"]
[EventType "swiss"]
[EventCountry "URU"]
[SourceTitle "playchess.com"]
[Source "ChessBase"]
[SourceQuality "1"]
[TimeControl "40/5400+30:1800+30"]

1. d4 e6 2. c4 {[%emt 0:00:00]} Nf6 {[%emt 0:01:39]} 3. Nc3 {[%emt 0:00:25]} Bb4 {[%emt 0:00:04]} 4. Nf3 {[%emt 0:00:09]} b6 {[%emt 0:00:05]} 5. Bg5 {[%emt 0:00:24]} Bb7 {[%emt 0:00:34]} 6. e3 {[%emt 0:00:10]} h6 7. Bh4 {[%emt 0:00:22]} g5 {[%emt 0:00:07]} 8. Bg3 {[%emt 0:00:05]} Ne4 {[%emt 0:00:03]} 9. Nd2 {[%emt 0:00:13]} Nxg3 10. hxg3 {[%emt 0:00:11]} Bxc3 {[%emt 0:02:12]} 11. bxc3 {[%emt 0:01:02]} Qe7 {[%emt 0:03:59]} 12. f3 {[%emt 0:01:30]} d6 {[%emt 0:07:24]} 13. Bd3 {[%emt 0:04:15]} Nd7 14. Qc2 h5 {[%emt 0:13:23]} 15. O-O-O {[%emt 0:01:20]} O-O-O {[%emt 0:04:42]} 16. Rh2 {[%emt 0:08:06]} Rh7 {[%emt 0:00:30]} 17. Rdh1 {[%emt 0:00:30]} Rdh8 {[%emt 0:00:06]} 18. Nf1 $2 {[%emt 0:00:30]} (18. Bxh7 $18 Nf6 19. Bd3) 18... e5 $18 {[%emt 0:00:30]} (18... f5 $15 {stays ahead.}) 1-0

[Event "American Continental-ch 2018"]
[Site "Montevideo"]
[Date "2018.06.10"]
[Round "11"]
[White "Bick, Gabriel"]
[Black "Mesias Rojas, Rabindranath"]
[Result "1-0"]
[ECO "B29"]
[WhiteElo "2391"]
[BlackElo "2203"]
[Annotator "NA"]
[PlyCount "61"]
[EventDate "2018.??.??"]
[EventType "swiss"]
[EventCountry "URU"]
[SourceTitle "playchess.com"]
[Source "ChessBase"]
[SourceQuality "1"]
[TimeControl "40/5400+30:1800+30"]

1. e4 {[%emt 0:00:00]} c5 {[%emt 0:07:41]} 2. Nf3 {[%emt 0:00:00]} Nf6 {[%emt 0:00:13]} 3. e5 {[%emt 0:00:00]} Nd5 {[%emt 0:00:03]} 4. Nc3 {[%emt 0:00:00]} Nxc3 {[%emt 0:00:18]} 5. dxc3 {[%emt 0:00:00]} Nc6 {[%emt 0:00:16]} 6. Bf4 {[%emt 0:07:16]} Qb6 {[%emt 0:01:49]} 7. Qc1 {[%emt 0:07:28]} e6 {[%emt 0:01:07]} 8. Be2 {[%emt 0:09:21]} Be7 {[%emt 0:01:55]} 9. h4 {[%emt 0:01:33]} h6 {[%emt 0:00:18]} 10. Rh3 {[%emt 0:02:47]} Qc7 {[%emt 0:03:33]} 11. Rg3 {[%emt 0:13:23]} Bf8 {[%emt 0:13:27]} 12. Qe3 {[%emt 0:03:31]} b6 {[%emt 0:03:44]} 13. c4 {[%emt 0:06:48]} Bb7 {[%emt 0:09:52]} 14. h5 {[%emt 0:09:21]} O-O-O {[%emt 0:14:38]} 15. O-O-O {[%emt 0:00:47]} Na5 {[%emt 0:16:24]} 16. b3 {[%emt 0:06:15]} Nc6 {[%emt 0:02:23]} 17. Kb2 {[%emt 0:02:24]} g5 {[%emt 0:03:31]} 18. hxg6 {[%emt 0:00:16]} fxg6 {[%emt 0:00:02]} 19. Rxg6 {[%emt 0:01:43]} Ne7 {[%emt 0:01:43]} 20. Rf6 {[%emt 0:01:41]} Nf5 {[%emt 0:01:51]} 21. Rxf5 {[%emt 0:09:31]} exf5 {[%emt 0:00:07]} 22. Nh4 {[%emt 0:00:51]} Bg7 {[%emt 0:07:23]} 23. Kc1 {[%emt 0:12:05]} d6 {[%emt 0:02:18]} 24. exd6 {[%emt 0:01:13]} Qf7 {[%emt 0:00:23]} 25. Bd3 {[%emt 0:03:02]} Qf6 {[%emt 0:02:09]} 26. Nxf5 {[%emt 0:00:02]} Qb2+ {[%emt 0:05:47]} 27. Kd2 {[%emt 0:00:01]} Kb8 {[%emt 0:00:18]} 28. Nxg7 {[%emt 0:01:57]} Qxg7 {[%emt 0:00:02]} 29. Be5 {[%emt 0:00:01]} Qxg2 {[%emt 0:00:22]} 30. d7+ {[%emt 0:00:26]} Ka8 {[%emt 0:00:15]} 31. Bxh8 {[%emt 0:00:01]} 1-0

[Event "American Continental-ch 2018"]
[Site "Montevideo"]
[Date "2018.06.10"]
[Round "11"]
[White "Ruiz Castillo, Joshua Daniel"]
[Black "Januario, Severino Pereira"]
[Result "1/2-1/2"]
[ECO "C11"]
[WhiteElo "2378"]
[BlackElo "2175"]
[Annotator "NA"]
[PlyCount "90"]
[EventDate "2018.??.??"]
[EventType "swiss"]
[EventCountry "URU"]
[SourceTitle "playchess.com"]
[Source "ChessBase"]
[SourceQuality "1"]
[TimeControl "40/5400+30:1800+30"]

1. e4 {[%emt 0:03:13]} e6 {[%emt 0:00:16]} 2. d4 {[%emt 0:00:06]} d5 {[%emt 0:00:11]} 3. Nc3 {[%emt 0:00:06]} Nf6 {[%emt 0:00:12]} 4. e5 {[%emt 0:00:06]} Nfd7 {[%emt 0:00:12]} 5. f4 {[%emt 0:00:06]} c5 {[%emt 0:00:15]} 6. Nf3 {[%emt 0:00:04]} Nc6 {[%emt 0:00:15]} 7. Be3 {[%emt 0:00:07]} a6 {[%emt 0:00:20]} 8. Qd2 {[%emt 0:00:07]} b5 {[%emt 0:00:39]} 9. Bd3 {[%emt 0:03:03]} Qb6 {[%emt 0:01:38]} 10. dxc5 {[%emt 0:00:51]} Bxc5 {[%emt 0:00:31]} 11. Bxc5 {[%emt 0:00:04]} Nxc5 {[%emt 0:01:52]} 12. Qf2 {[%emt 0:01:55]} b4 {[%emt 0:07:53]} 13. Ne2 {[%emt 0:00:07]} a5 {[%emt 0:00:49]} 14. O-O {[%emt 0:00:59]} Ba6 {[%emt 0:00:33]} 15. Kh1 {[%emt 0:00:53]} Bxd3 {[%emt 0:03:11]} 16. cxd3 {[%emt 0:00:00]} Nd7 {[%emt 0:01:29]} 17. Rac1 {[%emt 0:08:20]} Ra6 {[%emt 0:16:06]} 18. d4 {[%emt 0:17:41]} O-O {[%emt 0:05:02]} 19. f5 {[%emt 0:02:13]} exf5 {[%emt 0:09:11]} 20. Ng5 {[%emt 0:00:19]} Ne7 {[%emt 0:06:48]} 21. Nxh7 {[%emt 0:00:12]} Re8 {[%emt 0:01:29]} 22. Ng5 {[%emt 0:00:21]} Qh6 {[%emt 0:00:31]} 23. Nh3 {[%emt 0:00:51]} Nf8 {[%emt 0:01:07]} 24. Ng3 {[%emt 0:00:57]} g6 {[%emt 0:04:34]} 25. Qe2 {[%emt 0:07:04]} Raa8 {[%emt 0:01:54]} 26. Nf4 {[%emt 0:00:13]} Rec8 {[%emt 0:02:12]} 27. e6 {[%emt 0:00:24]} fxe6 {[%emt 0:05:00]} 28. Rxc8 {[%emt 0:00:07]} Rxc8 {[%emt 0:00:06]} 29. Nxe6 {[%emt 0:00:14]} Rc1 {[%emt 0:00:37]} 30. Kg1 {[%emt 0:08:10]} Nxe6 {[%emt 0:01:00]} 31. Qxe6+ {[%emt 0:00:06]} Kf8 {[%emt 0:00:11]} 32. b3 {[%emt 0:04:57]} Qf4 {[%emt 0:02:03]} 33. Rxc1 {[%emt 0:08:38]} Qxc1+ {[%emt 0:00:10]} 34. Nf1 {[%emt 0:00:07]} Qb2 {[%emt 0:00:30]} 35. Qe3 {[%emt 0:01:20]} Qxa2 {[%emt 0:00:33]} 36. Nd2 {[%emt 0:00:20]} a4 {[%emt 0:00:24]} 37. bxa4 {[%emt 0:00:04]} Qxa4 {[%emt 0:00:09]} 38. Kf2 {[%emt 0:00:26]} Qc2 {[%emt 0:04:04]} 39. Ke1 {[%emt 0:01:51]} Qc1+ {[%emt 0:01:09]} 40. Ke2 {[%emt 0:00:26]} Nc6 {[%emt 0:36:50]} 41. Qh6+ {[%emt 0:35:15]} Kf7 {[%emt 0:11:32]} 42. Qh7+ {[%emt 0:01:32]} Kf6 {[%emt 0:01:17]} 43. Qh8+ {[%emt 0:00:20]} Kf7 {[%emt 0:01:09]} 44. Qh7+ {[%emt 0:00:25]} Kf6 {[%emt 0:00:56]} 45. Qh8+ {[%emt 0:01:03]} Kf7 {[%emt 0:00:09]} 1/2-1/2

[Event "American Continental-ch 2018"]
[Site "Montevideo"]
[Date "2018.06.10"]
[Round "11"]
[White "Varacalli, Francisco"]
[Black "Cabrera Pando, Ramiro"]
[Result "1/2-1/2"]
[ECO "B42"]
[WhiteElo "2312"]
[BlackElo "2196"]
[Annotator "NA"]
[PlyCount "65"]
[EventDate "2018.??.??"]
[EventType "swiss"]
[EventCountry "URU"]
[SourceTitle "playchess.com"]
[Source "ChessBase"]
[SourceQuality "1"]
[TimeControl "40/5400+30:1800+30"]

1. e4 {[%emt 0:03:55]} c5 {[%emt 0:00:13]} 2. Nf3 {[%emt 0:00:12]} e6 {[%emt 0:00:22]} 3. d4 {[%emt 0:00:11]} cxd4 {[%emt 0:00:05]} 4. Nxd4 {[%emt 0:00:05]} a6 {[%emt 0:00:20]} 5. Bd3 {[%emt 0:01:36]} g6 {[%emt 0:01:08]} 6. f4 {[%emt 0:12:36]} Bg7 {[%emt 0:00:23]} 7. c3 {[%emt 0:01:37]} Ne7 {[%emt 0:02:07]} 8. Be3 {[%emt 0:03:10]} Nbc6 {[%emt 0:00:08]} 9. Nxc6 {[%emt 0:03:45]} Nxc6 {[%emt 0:00:22]} 10. Nd2 {[%emt 0:00:45]} d5 {[%emt 0:02:48]} 11. e5 {[%emt 0:10:47]} O-O {[%emt 0:04:26]} 12. Nf3 {[%emt 0:03:42]} f6 {[%emt 0:03:43]} 13. exf6 {[%emt 0:01:24]} Bxf6 {[%emt 0:05:52]} 14. O-O {[%emt 0:03:43]} e5 {[%emt 0:17:32]} 15. fxe5 {[%emt 0:03:04]} Nxe5 {[%emt 0:00:26]} 16. Nxe5 {[%emt 0:01:22]} Bxe5 {[%emt 0:00:05]} 17. Rxf8+ {[%emt 0:00:08]} Qxf8 {[%emt 0:00:11]} 18. Bxg6 {[%emt 0:03:54]} Qd6 {[%emt 0:02:11]} 19. Bxh7+ {[%emt 0:13:51]} Kxh7 {[%emt 0:01:13]} 20. Qh5+ {[%emt 0:00:04]} Kg8 {[%emt 0:03:20]} 21. Qe8+ {[%emt 0:00:41]} Kh7 {[%emt 0:00:38]} 22. Rf1 {[%emt 0:03:04]} Qe6 {[%emt 0:06:05]} 23. Rf7+ {[%emt 0:07:01]} Bg7 {[%emt 0:00:07]} 24. Re7 {[%emt 0:00:20]} Qg6 {[%emt 0:01:00]} 25. Qa4 {[%emt 0:06:31]} Bg4 {[%emt 0:05:46]} 26. Bd4 {[%emt 0:01:51]} Rg8 {[%emt 0:04:25]} 27. Rxg7+ {[%emt 0:03:41]} Rxg7 {[%emt 0:00:06]} 28. Bxg7 {[%emt 0:00:03]} Kxg7 {[%emt 0:01:10]} 29. Qd4+ {[%emt 0:00:28]} Kh6 {[%emt 0:04:12]} 30. Qxd5 {[%emt 0:00:42]} Qb1+ {[%emt 0:00:40]} 31. Kf2 {[%emt 0:00:02]} Qxb2+ {[%emt 0:00:14]} 32. Kg3 {[%emt 0:00:19]} Bh5 {[%emt 0:00:06]} 33. Qd6+ {[%emt 0:00:58]} 1/2-1/2